Workbook

Sheet Plan1
A1: Nº do Item | B1: Tipo de Item | C1: Item | D1: Valor Unitário Estimado (R$) | E1: UASG - Município/UF de Entrega - Quantidade | H1: CUSTO TOTAL
A3: 1 | B3: Serviço | C3: 16918-Informática - Desenvolvimento / Implantação / Manutenção Re-de de Computador | D3: 205 | E3: 250110 - COORDENAÇÃO GERAL DE MATERIAL E PATRIMÔNIO | F3: BRASÍLIA/DF | G3: 40000 | H3: =G3*D$3 -> 8200000
E4: 450432 - SECRETARIA DE ESTADO DE EDUCACAO DO DISTRITO | F4: BRASÍLIA/DF | G4: 4000 | H4: =G4*D$3 -> 820000
E5: 120036 - DEPARTAMENTO DE CONTROLE DO ESPAÇO AÉREO | F5: Rio de Janeiro/RJ | G5: 5000 | H5: =G5*D$3 -> 1025000
E6: 195006 - CIA DE DESENV. DO VALE DO SAO FRANCISCO-DF | F6: BRASÍLIA/DF | G6: 5000 | H6: 1025000
A7: TOTAIS DO ITEM 1 | G7: =SUM(G3:G6) -> 54000 | H7: =SUM(H3:H6) -> 11070000
A8: 2 | B8: Material | C8: 150830-SOFTWARE | D8: 13816.67 | E8: 450432 - SECRETARIA DE ESTADO DE EDUCACAO DO DISTRITO | F8: BRASÍLIA/DF | G8: 5 | H8: =D$8*G8 -> 69083.35
E9: 120036 - DEPARTAMENTO DE CONTROLE DO ESPAÇO AÉREO | F9: Rio de Janeiro/RJ | G9: 1 | H9: =D$8*G9 -> 13816.67
E10: 195006 - CIA DE DESENV. DO VALE DO SAO FRANCISCO-DF | F10: BRASÍLIA/DF | G10: 1 | H10: =D$8*G10 -> 13816.67
A11: TOTAIS DO ITEM 2 | G11: =SUM(G8:G10) -> 7 | H11: =SUM(H8:H10) -> 96716.69
A12: 3 | B12: Serviço | C12: 22993-Informática - Suporte Técnico ( Software ) | D12: 3039.67 | E12: 450432 - SECRETARIA DE ESTADO DE EDUCACAO DO DISTRITO | F12: BRASÍLIA/DF | G12: 5 | H12: =D$12*G12 -> 15198.35
E13: 120036 - DEPARTAMENTO DE CONTROLE DO ESPAÇO AÉREO | F13: Rio de Janeiro/RJ | G13: 1 | H13: =D$12*G13 -> 3039.67
E14: 195006 - CIA DE DESENV. DO VALE DO SAO FRANCISCO-DF | F14: BRASÍLIA/DF | G14: 1 | H14: 3039.67
A15: TOTAIS DO ITEM 3 | G15: =SUM(G12:G14) -> 7 | H15: =SUM(H12:H14) -> 21277.69
A16: 4 | B16: Material | C16: 150830-SOFTWARE | D16: 8400 | E16: 250110 - COORDENAÇÃO GERAL DE MATERIAL E PATRIMÔNIO | F16: BRASÍLIA/DF | G16: 18 | H16: =D$16*G16 -> 151200
E17: 450432 - SECRETARIA DE ESTADO DE EDUCACAO DO DISTRITO | F17: BRASÍLIA/DF | G17: 5 | H17: =D$16*G17 -> 42000
E18: 120036 - DEPARTAMENTO DE CONTROLE DO ESPAÇO AÉREO | F18: Rio de Janeiro/RJ | G18: 3 | H18: 25200
E19: 195006 - CIA DE DESENV. DO VALE DO SAO FRANCISCO-DF | F19: BRASÍLIA/DF | G19: 3 | H19: 25200
A20: TOTAIS DO ITEM 4 | G20: =SUM(G16:G19) -> 29 | H20: =SUM(H16:H19) -> 243600
A21: 5 | B21: Serviço | C21: 22993-Informática - Suporte Técnico ( Software ) | D21: 1848 | E21: 250110 - COORDENAÇÃO GERAL DE MATERIAL E PATRIMÔNIO | F21: BRASÍLIA/DF | G21: 18 | H21: =D$21*G21 -> 33264
E22: 450432 - SECRETARIA DE ESTADO DE EDUCACAO DO DISTRITO | F22: BRASÍLIA/DF | G22: 5 | H22: =D$21*G22 -> 9240
E23: 120036 - DEPARTAMENTO DE CONTROLE DO ESPAÇO AÉREO | F23: Rio de Janeiro/RJ | G23: 3 | H23: 5544
E24: 195006 - CIA DE DESENV. DO VALE DO SAO FRANCISCO-DF | F24: BRASÍLIA/DF | G24: 3 | H24: 5544
A25: TOTAIS DO ITEM 5 | G25: =SUM(G21:G24) -> 29 | H25: 53592
A26: 6 | B26: Material | C26: 150830-SOFTWARE | D26: 1637.5 | E26: 250110 - COORDENAÇÃO GERAL DE MATERIAL E PATRIMÔNIO | F26: BRASÍLIA/DF | G26: 600 | H26: =D$26*G26 -> 982500
E27: 450432 - SECRETARIA DE ESTADO DE EDUCACAO DO DISTRITO | F27: BRASÍLIA/DF | G27: 198 | H27: =D$26*G27 -> 324225
E28: 120036 - DEPARTAMENTO DE CONTROLE DO ESPAÇO AÉREO | F28: Rio de Janeiro/RJ | G28: 30 | H28: 49125
E29: 195006 - CIA DE DESENV. DO VALE DO SAO FRANCISCO-DF | F29: BRASÍLIA/DF | G29: 30 | H29: 49125
A30: TOTAIS DO ITEM 6 | G30: =SUM(G26:G29) -> 858 | H30: 1404975
A31: 7 | B31: Serviço | C31: 22993-Informática - Suporte Técnico ( Software ) | D31: 360.25 | E31: 250110 - COORDENAÇÃO GERAL DE MATERIAL E PATRIMÔNIO | F31: BRASÍLIA/DF | G31: 600 | H31: =D$31*G31 -> 216150
E32: 450432 - SECRETARIA DE ESTADO DE EDUCACAO DO DISTRITO | F32: BRASÍLIA/DF | G32: 198 | H32: =D$31*G32 -> 71329.5
E33: 120036 - DEPARTAMENTO DE CONTROLE DO ESPAÇO AÉREO | F33: Rio de Janeiro/RJ | G33: 30 | H33: 10807.5
E34: 195006 - CIA DE DESENV. DO VALE DO SAO FRANCISCO-DF | F34: BRASÍLIA/DF | G34: 30 | H34: 10807.5
A35: TOTAIS DO ITEM 7 | G35: =SUM(G31:G34) -> 858 | H35: 309094.5
A36: 8 | B36: Material | C36: 150830-SOFTWARE | D36: 71250 | E36: 450432 - SECRETARIA DE ESTADO DE EDUCACAO DO DISTRITO | F36: BRASÍLIA/DF | G36: 1 | H36: =D$36*G36 -> 71250
E37: 120036 - DEPARTAMENTO DE CONTROLE DO ESPAÇO AÉREO | F37: Rio de Janeiro/RJ | G37: 1 | H37: =D$36*G37 -> 71250
E38: 195006 - CIA DE DESENV. DO VALE DO SAO FRANCISCO-DF | F38: BRASÍLIA/DF | G38: 1 | H38: 71250
A39: TOTAIS DO ITEM 8 | G39: =SUM(G36:G38) -> 3 | H39: 213750
A40: 9 | B40: Serviço | C40: 22993-Informática - Suporte Técnico ( Software ) | D40: 15675 | E40: 450432 - SECRETARIA DE ESTADO DE EDUCACAO DO DISTRITO | F40: BRASÍLIA/DF | G40: 1 | H40: =D$40*G40 -> 15675
E41: 120036 - DEPARTAMENTO DE CONTROLE DO ESPAÇO AÉREO | F41: Rio de Janeiro/RJ | G41: 1 | H41: =D$40*G41 -> 15675
E42: 195006 - CIA DE DESENV. DO VALE DO SAO FRANCISCO-DF | F42: BRASÍLIA/DF | G42: 1 | H42: 15675
A43: TOTAIS DO ITEM 9 | G43: =SUM(G40:G42) -> 3 | H43: 47025
A44: 10 | B44: Material | C44: 150830-SOFTWARE | D44: 1116.67 | E44: 250110 - COORDENAÇÃO GERAL DE MATERIAL E PATRIMÔNIO | F44: BRASÍLIA/DF | G44: 50 | H44: =D$44*G44 -> 55833.5
E45: 450432 - SECRETARIA DE ESTADO DE EDUCACAO DO DISTRITO | F45: BRASÍLIA/DF | G45: 198 | H45: =D$44*G45 -> 221100.66
E46: 120036 - DEPARTAMENTO DE CONTROLE DO ESPAÇO AÉREO | F46: Rio de Janeiro/RJ | G46: 80 | H46: 89333.6
E47: 195006 - CIA DE DESENV. DO VALE DO SAO FRANCISCO-DF | F47: BRASÍLIA/DF | G47: 80 | H47: 89333.6
A48: TOTAIS DO ITEM 10 | G48: =SUM(G44:G47) -> 408 | H48: 455601.36
A49: 11 | B49: Serviço | C49: 22993-Informática - Suporte Técnico ( Software ) | D49: 245.67 | E49: 250110 - COORDENAÇÃO GERAL DE MATERIAL E PATRIMÔNIO | F49: BRASÍLIA/DF | G49: 50 | H49: =D$49*G49 -> 12283.5
E50: 450432 - SECRETARIA DE ESTADO DE EDUCACAO DO DISTRITO | F50: BRASÍLIA/DF | G50: 198 | H50: =D$49*G50 -> 48642.66
E51: 120036 - DEPARTAMENTO DE CONTROLE DO ESPAÇO AÉREO | F51: Rio de Janeiro/RJ | G51: 80 | H51: 19653.6
E52: 195006 - CIA DE DESENV. DO VALE DO SAO FRANCISCO-DF | F52: BRASÍLIA/DF | G52: 80 | H52: 19653.6
A53: TOTAIS DO ITEM 11 | G53: =SUM(G49:G52) -> 408 | H53: 100233.36
A54: 12 | B54: Material | C54: 150830-SOFTWARE | D54: 850 | E54: 250110 - COORDENAÇÃO GERAL DE MATERIAL E PATRIMÔNIO | F54: BRASÍLIA/DF | G54: 50 | H54: =D$54*G54 -> 42500
E55: 450432 - SECRETARIA DE ESTADO DE EDUCACAO DO DISTRITO | F55: BRASÍLIA/DF | G55: 198 | H55: =D$54*G55 -> 168300
E56: 120036 - DEPARTAMENTO DE CONTROLE DO ESPAÇO AÉREO | F56: Rio de Janeiro/RJ | G56: 80 | H56: 68000
E57: 195006 - CIA DE DESENV. DO VALE DO SAO FRANCISCO-DF | F57: BRASÍLIA/DF | G57: 80 | H57: 68000
A58: TOTAIS DO ITEM 12 | G58: =SUM(G54:G57) -> 408 | H58: 346800
A59: 13 | B59: Serviço | C59: 22993-Informática - Suporte Técnico ( Software ) | D59: 187 | E59: 250110 - COORDENAÇÃO GERAL DE MATERIAL E PATRIMÔNIO | F59: BRASÍLIA/DF | G59: 50 | H59: =D$59*G59 -> 9350
E60: 450432 - SECRETARIA DE ESTADO DE EDUCACAO DO DISTRITO | F60: BRASÍLIA/DF | G60: 198 | H60: =D$59*G60 -> 37026
E61: 120036 - DEPARTAMENTO DE CONTROLE DO ESPAÇO AÉREO | F61: Rio de Janeiro/RJ | G61: 80 | H61: 14960
E62: 195006 - CIA DE DESENV. DO VALE DO SAO FRANCISCO-DF | F62: BRASÍLIA/DF | G62: 80 | H62: 14960
A63: TOTAIS DO ITEM 13 | G63: =SUM(G59:G62) -> 408 | H63: 76296
A64: 14 | B64: Material | C64: 150830-SOFTWARE | D64: 1116.67 | E64: 250110 - COORDENAÇÃO GERAL DE MATERIAL E PATRIMÔNIO | F64: BRASÍLIA/DF | G64: 25 | H64: =D$64*G64 -> 27916.75
E65: 450432 - SECRETARIA DE ESTADO DE EDUCACAO DO DISTRITO | F65: BRASÍLIA/DF | G65: 198 | H65: =D$64*G65 -> 221100.66
E66: 120036 - DEPARTAMENTO DE CONTROLE DO ESPAÇO AÉREO | F66: Rio de Janeiro/RJ | G66: 80 | H66: 89333.6
E67: 195006 - CIA DE DESENV. DO VALE DO SAO FRANCISCO-DF | F67: BRASÍLIA/DF | G67: 80 | H67: 89333.6
A68: TOTAIS DO ITEM 14 | G68: =SUM(G64:G67) -> 383 | H68: 427684.61
A69: 15 | B69: Serviço | C69: 22993-Informática - Suporte Técnico ( Software ) | D69: 245.67 | E69: 250110 - COORDENAÇÃO GERAL DE MATERIAL E PATRIMÔNIO | F69: BRASÍLIA/DF | G69: 25 | H69: =D$69*G69 -> 6141.75
E70: 450432 - SECRETARIA DE ESTADO DE EDUCACAO DO DISTRITO | F70: BRASÍLIA/DF | G70: 198 | H70: =D$69*G70 -> 48642.66
E71: 120036 - DEPARTAMENTO DE CONTROLE DO ESPAÇO AÉREO | F71: Rio de Janeiro/RJ | G71: 80 | H71: 19653.6
E72: 195006 - CIA DE DESENV. DO VALE DO SAO FRANCISCO-DF | F72: BRASÍLIA/DF | G72: 80 | H72: 19653.6
A73: TOTAIS DO ITEM 15 | G73: =SUM(G69:G72) -> 383 | H73: 94091.61
A74: 16 | B74: Material | C74: 150830-SOFTWARE | D74: 1116.67 | E74: 250110 - COORDENAÇÃO GERAL DE MATERIAL E PATRIMÔNIO | F74: BRASÍLIA/DF | G74: 25 | H74: =D$74*G74 -> 27916.75
E75: 450432 - SECRETARIA DE ESTADO DE EDUCACAO DO DISTRITO | F75: BRASÍLIA/DF | G75: 198 | H75: =D$74*G75 -> 221100.66
E76: 120036 - DEPARTAMENTO DE CONTROLE DO ESPAÇO AÉREO | F76: Rio de Janeiro/RJ | G76: 80 | H76: 89333.6
E77: 195006 - CIA DE DESENV. DO VALE DO SAO FRANCISCO-DF | F77: BRASÍLIA/DF | G77: 80 | H77: 89333.6
A78: TOTAIS DO ITEM 16 | G78: =SUM(G74:G77) -> 383 | H78: 427684.61
A79: 17 | B79: Serviço | C79: 22993-Informática - Suporte Técnico ( Software ) | D79: 245.67 | E79: 250110 - COORDENAÇÃO GERAL DE MATERIAL E PATRIMÔNIO | F79: BRASÍLIA/DF | G79: 25 | H79: =D$79*G79 -> 6141.75
E80: 450432 - SECRETARIA DE ESTADO DE EDUCACAO DO DISTRITO | F80: BRASÍLIA/DF | G80: 198 | H80: =D$79*G80 -> 48642.66
E81: 120036 - DEPARTAMENTO DE CONTROLE DO ESPAÇO AÉREO | F81: Rio de Janeiro/RJ | G81: 80 | H81: 19653.6
E82: 195006 - CIA DE DESENV. DO VALE DO SAO FRANCISCO-DF | F82: BRASÍLIA/DF | G82: 80 | H82: 19653.6
A83: TOTAIS DO ITEM 17 | G83: =SUM(G79:G82) -> 383 | H83: 94091.61
A84: 18 | B84: Material | C84: 150830-SOFTWARE | D84: 583.33 | E84: 120036 - DEPARTAMENTO DE CONTROLE DO ESPAÇO AÉREO | F84: Rio de Janeiro/RJ | G84: 25 | H84: =D$84*G84 -> 14583.25
E85: 195006 - CIA DE DESENV. DO VALE DO SAO FRANCISCO-DF | F85: BRASÍLIA/DF | G85: 25 | H85: =D$84*G85 -> 14583.25
A86: TOTAIS DO ITEM 18 | G86: =SUM(G84:G85) -> 50 | H86: =D$84*G86 -> 29166.5
A87: 19 | B87: Serviço | C87: 22993-Informática - Suporte Técnico ( Software ) | D87: 128.33 | E87: 450432 - SECRETARIA DE ESTADO DE EDUCACAO DO DISTRITO | F87: BRASÍLIA/DF | G87: 198 | H87: =D$87*G87 -> 25409.34
E88: 120036 - DEPARTAMENTO DE CONTROLE DO ESPAÇO AÉREO | F88: Rio de Janeiro/RJ | G88: 25 | H88: =D$87*G88 -> 3208.25
E89: 195006 - CIA DE DESENV. DO VALE DO SAO FRANCISCO-DF | F89: BRASÍLIA/DF | G89: 25 | H89: 3208.25
A90: TOTAIS DO ITEM 19 | G90: =SUM(G87:G89) -> 248 | H90: 31825.84
A91: 20 | B91: Material | C91: 150830-SOFTWARE | D91: 566.67 | E91: 250110 - COORDENAÇÃO GERAL DE MATERIAL E PATRIMÔNIO | F91: BRASÍLIA/DF | G91: 50 | H91: =D$91*G91 -> 28333.5
E92: 450432 - SECRETARIA DE ESTADO DE EDUCACAO DO DISTRITO | F92: BRASÍLIA/DF | G92: 193 | H92: =D$91*G92 -> 109367.31
E93: 120036 - DEPARTAMENTO DE CONTROLE DO ESPAÇO AÉREO | F93: Rio de Janeiro/RJ | G93: 76 | H93: 43066.92
E94: 195006 - CIA DE DESENV. DO VALE DO SAO FRANCISCO-DF | F94: BRASÍLIA/DF | G94: 76 | H94: 43066.92
A95: TOTAIS DO ITEM 20 | G95: =SUM(G91:G94) -> 395 | H95: 223834.65
A96: 21 | B96: Serviço | C96: 22993-Informática - Suporte Técnico ( Software ) | D96: 124.67 | E96: 250110 - COORDENAÇÃO GERAL DE MATERIAL E PATRIMÔNIO | F96: BRASÍLIA/DF | G96: 50 | H96: =D$96*G96 -> 6233.5
E97: 450432 - SECRETARIA DE ESTADO DE EDUCACAO DO DISTRITO | F97: BRASÍLIA/DF | G97: 193 | H97: =D$96*G97 -> 24061.31
E98: 120036 - DEPARTAMENTO DE CONTROLE DO ESPAÇO AÉREO | F98: Rio de Janeiro/RJ | G98: 76 | H98: 9474.92
E99: 195006 - CIA DE DESENV. DO VALE DO SAO FRANCISCO-DF | F99: BRASÍLIA/DF | G99: 76 | H99: 9474.92
A100: TOTAIS DO ITEM 21 | G100: =SUM(G96:G99) -> 395 | H100: 49244.65
A101: 22 | B101: Material | C101: 150830-SOFTWARE | D101: 729.17 | E101: 450432 - SECRETARIA DE ESTADO DE EDUCACAO DO DISTRITO | F101: BRASÍLIA/DF | G101: 193 | H101: =D$101*G101 -> 140729.81
E102: 120036 - DEPARTAMENTO DE CONTROLE DO ESPAÇO AÉREO | F102: Rio de Janeiro/RJ | G102: 76 | H102: =D$101*G102 -> 55416.92
E103: 195006 - CIA DE DESENV. DO VALE DO SAO FRANCISCO-DF | F103: BRASÍLIA/DF | G103: 76 | H103: 55416.92
A104: TOTAIS DO ITEM 22 | G104: =SUM(G101:G103) -> 345 | H104: 251563.65
A105: 23 | B105: Serviço | C105: 22993-Informática - Suporte Técnico ( Software ) | D105: 160.42 | E105: 450432 - SECRETARIA DE ESTADO DE EDUCACAO DO DISTRITO | F105: BRASÍLIA/DF | G105: 193 | H105: =D$105*G105 -> 30961.06
E106: 120036 - DEPARTAMENTO DE CONTROLE DO ESPAÇO AÉREO | F106: Rio de Janeiro/RJ | G106: 76 | H106: =D$105*G106 -> 12191.92
E107: 195006 - CIA DE DESENV. DO VALE DO SAO FRANCISCO-DF | F107: BRASÍLIA/DF | G107: 76 | H107: 12191.92
A108: TOTAIS DO ITEM 23 | G108: =SUM(G105:G107) -> 345 | H108: 55344.9
A109: 24 | B109: Material | C109: 150830-SOFTWARE | D109: 1116.67 | E109: 450432 - SECRETARIA DE ESTADO DE EDUCACAO DO DISTRITO | F109: BRASÍLIA/DF | G109: 193 | H109: =D$109*G109 -> 215517.31
E110: 120036 - DEPARTAMENTO DE CONTROLE DO ESPAÇO AÉREO | F110: Rio de Janeiro/RJ | G110: 26 | H110: =D$109*G110 -> 29033.42
E111: 195006 - CIA DE DESENV. DO VALE DO SAO FRANCISCO-DF | F111: BRASÍLIA/DF | G111: 26 | H111: 29033.42
A112: TOTAIS DO ITEM 24 | G112: =SUM(G109:G111) -> 245 | H112: 273584.15
A113: 25 | B113: Serviço | C113: 22993-Informática - Suporte Técnico ( Software ) | D113: 245.67 | E113: 450432 - SECRETARIA DE ESTADO DE EDUCACAO DO DISTRITO | F113: BRASÍLIA/DF | G113: 193 | H113: =D$113*G113 -> 47414.31
E114: 120036 - DEPARTAMENTO DE CONTROLE DO ESPAÇO AÉREO | F114: Rio de Janeiro/RJ | G114: 26 | H114: =D$113*G114 -> 6387.42
E115: 195006 - CIA DE DESENV. DO VALE DO SAO FRANCISCO-DF | F115: BRASÍLIA/DF | G115: 26 | H115: 6387.42
A116: TOTAIS DO ITEM 25 | G116: =SUM(G113:G115) -> 245 | H116: 60189.15
A117: 26 | B117: Material | C117: 150830-SOFTWARE | D117: 908.33 | E117: 450432 - SECRETARIA DE ESTADO DE EDUCACAO DO DISTRITO | F117: BRASÍLIA/DF | G117: 30 | H117: =D$117*G117 -> 27249.9
E118: 120036 - DEPARTAMENTO DE CONTROLE DO ESPAÇO AÉREO | F118: Rio de Janeiro/RJ | G118: 1 | H118: =D$117*G118 -> 908.33
E119: 195006 - CIA DE DESENV. DO VALE DO SAO FRANCISCO-DF | F119: BRASÍLIA/DF | G119: 1 | H119: 908.33
A120: TOTAIS DO ITEM 26 | G120: =SUM(G117:G119) -> 32 | H120: 29066.56
A121: 27 | B121: Serviço | C121: 22993-Informática - Suporte Técnico ( Software ) | D121: 199.83 | E121: 450432 - SECRETARIA DE ESTADO DE EDUCACAO DO DISTRITO | F121: BRASÍLIA/DF | G121: 30 | H121: =D$121*G121 -> 5994.9
E122: 120036 - DEPARTAMENTO DE CONTROLE DO ESPAÇO AÉREO | F122: Rio de Janeiro/RJ | G122: 1 | H122: =D$121*G122 -> 199.83
E123: 195006 - CIA DE DESENV. DO VALE DO SAO FRANCISCO-DF | F123: BRASÍLIA/DF | G123: 1 | H123: 199.83
A124: TOTAIS DO ITEM 27 | G124: =SUM(G121:G123) -> 32 | H124: 6394.56
A125: 120036 - DEPARTAMENTO DE CONTROLE DO ESPAÇO AÉREO | H125: 1803850.62
A126: 195006 - CIA DE DESENV. DO VALE DO SAO FRANCISCO-DF | H126: 1803850.62
A127: 250110 - COORDENAÇÃO GERAL DE MATERIAL E PATRIMÔNIO | H127: 9805765
A128: 450432 - SECRETARIA DE ESTADO DE EDUCACAO DO DISTRITO | H128: 3079262.41
A129: TOTAL GERAL......... | H129: =SUM(H125:H128) -> 16492728.65
